fUST/lending_fUST_20240607
["ID","MTS","AMOUNT","RATE_DAILY","PERIOD"]
[328759601,1717771847005,-311.16126749,0.00018735,2]
[328759603,1717771847015,-500.0,0.00019879,2]
[328759605,1717771847025,-395.28860437,0.00019879,2]
[328759607,1717771847034,-396.62708768,0.00019879,2]
[328759609,1717771847044,-500.0,0.00019879,2]
[328759611,1717771847053,-500.0,0.00019879,2]
[328759613,1717771847063,-500.0,0.00019879,2]
[328759615,1717771847073,-500.0,0.00019879,2]
[328759617,1717771847082,-646.99215381,0.00019879,2]
[328759619,1717771847092,-500.0,0.00019879,2]
[328759621,1717771847101,-173.09777567,0.00019879,2]
[328759623,1717771847110,-738.67563049,0.00019879,2]
[328759625,1717771847120,-500.0,0.00019879,2]
[328759627,1717771847130,-500.0,0.00019879,2]
[328759629,1717771847142,-235.06008837,0.00019879,2]
[328759630,1717771847152,-612.34752877,0.00019879,2]
[328759632,1717771847161,-500.0,0.00019879,2]
[328759634,1717771847171,-500.0,0.00019879,2]
[328759636,1717771847182,-738.67563049,0.00019879,2]
[328759639,1717771847192,-500.0,0.00019879,2]
[328759640,1717771847201,-500.0,0.00019879,2]
[328759642,1717771847213,-500.0,0.00019879,2]
[328759644,1717771847222,-642.67785692,0.00019879,2]
[328761244,1717772072563,2919.18832933,9.999e-05,2]
[328761245,1717772486329,259.30105624,9.999e-05,2]
[328761246,1717772583305,300.0,9.999e-05,2]
[328761247,1717772793223,154.9690062,9.999e-05,2]
[328761304,1717773033176,-154.9690062,0.00017753,2]
[328761306,1717773033185,-2482.5200576,0.00017754,2]
[328761308,1717773033195,-156.3,0.00017949,2]
[328761310,1717773033205,-6073.0733073,0.0001795,2]
[328761312,1717773033216,-1127.95936111,0.00018688,2]
[328761325,1717773033326,-21564.95446068,0.00018753,2]
[328761327,1717773033338,-3335.04553932,0.00018753,2]
[328761329,1717773033348,-3740.61384264,0.00018788,2]
[328761331,1717773033360,-6823.0733073,0.00018788,2]
[328761892,1717773042219,-3374.1359825,0.00018788,2]
[328762002,1717773043358,-537.87234825,0.00018788,2]
[328762004,1717773043368,-683.05377662,0.000189,2]
[328762006,1717773043378,-2406.44360142,0.00019489,2]
[328762008,1717773043387,-154.29731234,0.00019792,3]
[328762012,1717773043397,-380.93975526,0.00019861,7]
[328762106,1717773044303,-1352.94956658,0.00019861,7]
[328762178,1717773047026,-9867.06559718,0.00019861,7]
[328762181,1717773047036,-1127.9593611,0.00019861,2]
[328762184,1717773047046,-1279.87795536,0.00019875,2]
[328762187,1717773047055,-9585.05846993,0.00019876,2]
[328762190,1717773047065,-1279.87795532,0.00019877,2]
[328762193,1717773047074,-1279.87795532,0.0001988,2]
[328762196,1717773047083,-1279.87795532,0.00019882,2]
[328762199,1717773047093,-1279.87795532,0.00019884,2]
[328762202,1717773047102,-3131.29822935,0.00019889,2]
[328762204,1717773047112,-177.93,0.00019962,3]
[328762208,1717773047121,-266.9,0.00019962,3]
[328762210,1717773047130,-800.72,0.00019962,3]
[328762213,1717773047140,-288.47047529,0.00019971,2]
[328762216,1717773047150,-500.0,0.00019971,2]
[328762220,1717773047160,-277.28235163,0.00019971,2]
[328762223,1717773047169,-500.0,0.00019971,2]
[328762226,1717773047178,-500.0,0.00019971,2]
[328762229,1717773047188,-635.69920289,0.00019971,2]
[328762232,1717773047197,-500.0,0.00019971,2]
[328762235,1717773047206,-500.0,0.00019971,2]
[328762237,1717773047217,-500.0,0.00019971,2]
[328762240,1717773047226,-476.72036947,0.00019971,2]
[328762243,1717773047235,-220.51802651,0.00019971,2]
[328762246,1717773047244,-620.87064106,0.00019971,2]
[328762249,1717773047255,-500.0,0.00019971,2]
[328762252,1717773047264,-500.0,0.00019971,2]
[328762255,1717773047274,-635.69920289,0.00019971,2]
[328762258,1717773047283,-465.13741494,0.00019971,2]
[328762260,1717773047293,-635.69920289,0.00019971,2]
[328762262,1717773047302,-500.0,0.00019971,2]
[328762263,1717773047312,-500.0,0.00019971,2]
[328762264,1717773047321,-635.69920289,0.00019971,2]
[328762266,1717773047330,-500.0,0.00019971,2]
[328762268,1717773047340,-635.69920289,0.00019971,2]
[328762270,1717773047349,-500.0,0.00019971,2]
[328762272,1717773047359,-635.69920289,0.00019971,2]
[328762274,1717773047368,-500.0,0.00019971,2]
[328762276,1717773047377,-500.0,0.00019971,2]
[328762278,1717773047387,-635.69920289,0.00019971,2]
[328762280,1717773047396,-635.69920289,0.00019971,2]
[328762282,1717773047406,-635.69920289,0.00019971,2]
[328762284,1717773047416,-500.0,0.00019971,2]
[328762286,1717773047425,-500.0,0.00019971,2]
[328762288,1717773047434,-635.69920289,0.00019971,2]
[328762290,1717773047444,-635.69920289,0.00019971,2]
[328762292,1717773047453,-500.0,0.00019971,2]
[328762294,1717773047463,-635.69920289,0.00019971,2]
[328762296,1717773047473,-500.0,0.00019971,2]
[328762298,1717773047483,-635.69920289,0.00019971,2]
[328762300,1717773047493,-500.0,0.00019971,2]
[328762302,1717773047504,-635.69920289,0.00019971,2]
[328762304,1717773047515,-500.0,0.00019971,2]
[328762306,1717773047525,-635.69920289,0.00019971,2]
[328762308,1717773047538,-520.39826699,0.00019971,2]
[328762310,1717773047547,-635.69920289,0.00019971,2]
[328762312,1717773047557,-635.69920289,0.00019971,2]
[328762314,1717773047567,-635.69920289,0.00019971,2]
[328762316,1717773047576,-635.69920289,0.00019971,2]
[328762318,1717773047587,-500.0,0.00019971,2]
[328762320,1717773047596,-635.69920289,0.00019971,2]
[328762322,1717773047607,-500.0,0.00019971,2]
[328762324,1717773047616,-635.69920289,0.00019971,2]
[328762326,1717773047626,-635.69920289,0.00019971,2]
[328762328,1717773047636,-635.69920289,0.00019971,2]
[328762330,1717773047646,-515.939215,0.00019972,2]
[328762332,1717773047655,-515.939215,0.00019972,2]
[328762334,1717773047665,-151.0,0.00019972,2]
[328762336,1717773047675,-151.0,0.00019972,2]
[328762338,1717773047684,-151.0,0.00019972,2]
[328762340,1717773047694,-223.965247,0.00019972,2]
[328762342,1717773047703,-607.993293,0.00019972,2]
[328762344,1717773047713,-607.993293,0.00019972,2]
[328762346,1717773047722,-1219.268058,0.00019972,2]
[328762348,1717773047732,-1219.268058,0.00019972,2]
[328762350,1717773047742,-1219.268058,0.00019972,2]
[328762351,1717773047751,-1219.268058,0.00019972,2]
[328762352,1717773047762,-151.0,0.00019972,2]
[328762354,1717773047772,-151.0,0.00019972,2]
[328762356,1717773047781,-151.0,0.00019972,2]
[328762358,1717773047791,-190.4326803,0.00019973,2]
[328762360,1717773047801,-151.0,0.00019973,2]
[328762362,1717773047810,-151.0,0.00019973,2]
[328762364,1717773047820,-1856.78441,0.00019973,2]
[328762366,1717773047829,-1856.78441,0.00019973,2]
[328762368,1717773047839,-151.0,0.00019973,2]
[328762369,1717773047848,-151.0,0.00019973,2]
[328762370,1717773047857,-151.0,0.00019973,2]
[328762371,1717773047866,-151.0,0.00019973,2]
[328762372,1717773047875,-151.0,0.00019973,2]
[328762373,1717773047884,-1759.131544,0.00019973,2]
[328762374,1717773047894,-1759.131544,0.00019973,2]
[328762375,1717773047903,-1759.131544,0.00019973,2]
[328762376,1717773047912,-1759.131544,0.00019973,2]
[328762377,1717773047922,-91.14602526,0.00019973,2]
[328762379,1717773661699,156.3,9.999e-05,2]
[328762380,1717773671211,154.95351395,9.999e-05,2]
[328762382,1717773875503,154.95351395,9.999e-05,2]
[328762386,1717774016276,1910.49735366,9.999e-05,2]
[328762388,1717774065932,207.9,0.000226,29]
[328762394,1717774141589,2641.73909648,9.999e-05,2]
[328762436,1717774233402,-1982.90053047,0.00017327,2]
[328762438,1717774233412,-156.3,0.00017327,2]
[328762440,1717774233422,-2409.63345823,0.00017328,2]
[328762442,1717774233431,-154.95351395,0.0001733,2]
[328762444,1717774233440,-215.631394,0.00017335,2]
[328762445,1717774233449,-1694.3830749,0.00017423,2]
[328762446,1717774233459,-10483.96462236,0.00017928,2]
[328762447,1717774233468,-14349.2634818,0.00017929,2]
[328762449,1717774233478,-455.36918442,0.000189,2]
[328762451,1717774233487,-29582.72138885,0.00018973,2]
[328762453,1717774233497,-156.76406228,0.00018998,2]
[328762455,1717774233506,-234.64654157,0.00018998,2]
[328762457,1717774233515,-319.998244,0.00018998,2]
[328762459,1717774233527,-8243.21151721,0.00018999,2]
[328762990,1717774239317,-154.95351395,0.00017326,2]
[328762992,1717774239328,-572.32433854,0.00018999,2]
[328762994,1717774239341,-6695.92458652,0.00018999,2]
[328763377,1717774243637,-1251.4726332,0.00018999,2]
[328763378,1717774243650,-619.71305479,0.00018999,2]
[328763379,1717774243661,-261.546,0.00018999,2]
[328763380,1717774243674,-463.13855425,0.00018999,2]
[328763381,1717774243686,-306.0,0.00019041,2]
[328763382,1717774243696,-153.0,0.00019041,2]
[328763383,1717774243706,-153.0,0.00019041,2]
[328763384,1717774243716,-306.0,0.00019041,2]
[328763385,1717774243726,-889.66,0.00019168,3]
[328763386,1717774243736,-1532.43983593,0.00019176,2]
[328763387,1717774243745,-9542.14583002,0.00019177,2]
[328763388,1717774243757,-7027.6,0.00019177,2]
[328763465,1717774244983,-153.0,0.00019041,2]
[328763467,1717774244993,-2731.80111969,0.00019177,2]
[328763469,1717774245003,-4575.33418537,0.00019178,7]
[328763563,1717774844374,154.95351395,9.999e-05,2]
[328763564,1717774899815,156.3,9.999e-05,2]
[328764238,1717775438173,-154.9690062,0.00017873,2]
[328764240,1717775438184,-846.58963307,0.00017874,2]
[328764242,1717775438196,-9691.41357538,0.00017874,2]
[328764244,1717775438205,-3070.8095879,0.00017875,2]
[328764246,1717775438215,-156.3,0.00017876,2]
[328764248,1717775438225,-2500.0,0.00017876,2]
[328764250,1717775438235,-1832.227981,0.00017888,2]
[328764252,1717775438245,-152.5,0.00018461,3]
[328764254,1717775438254,-152.5,0.00018855,3]
[328764256,1717775438264,-7916.02523066,0.00018888,2]
[328764258,1717775438275,-31310.0,0.0001889,2]
[328764260,1717775438290,-303.57945628,0.000189,2]
[328764262,1717775438300,-160.67037103,0.0001896,2]
[328764264,1717775438310,-508.67,0.0001898,3]
[328764266,1717775438320,-508.62,0.0001898,3]
[328764268,1717775438331,-160.67037102,0.0001899,2]
[328764270,1717775438341,-6659.23538687,0.0001899,7]
[328764272,1717775438351,-65780.0,0.0001899,3]
[328764274,1717775438362,-153.0,0.00019,2]
[328764276,1717775438372,-160.67037102,0.00019019,2]
[328764278,1717775438382,-160.67037102,0.00019049,2]
[328764280,1717775438392,-4236.94913646,0.00019059,2]
[328764282,1717775438402,-160.67037102,0.00019078,2]
[328764284,1717775438412,-185.08210044,0.000191,2]
[328764286,1717775438422,-62184.85,0.0001912,2]
[328764288,1717775438432,-547.193963,0.0001912,2]
[328764290,1717775438442,-547.193963,0.0001912,2]
[328764292,1717775438452,-151.0,0.0001912,2]
[328764294,1717775438462,-151.0,0.0001912,2]
[328764296,1717775438472,-158.67829,0.0001912,2]
[328764298,1717775438482,-226.403326,0.0001912,2]
[328764300,1717775438492,-226.403326,0.0001912,2]
[328764302,1717775438502,-151.0,0.0001912,2]
[328764304,1717775438511,-153.0,0.00019123,2]
[328764307,1717775438521,-153.0,0.00019123,2]
[328764309,1717775438532,-153.0,0.00019123,2]
[328764311,1717775438542,-29409.14087546,0.0001916,7]
[328764312,1717775438552,-68000.0,0.0001916,2]
[328764314,1717775438562,-547.193963,0.0001916,2]
[328764316,1717775438571,-547.193963,0.0001916,2]
[328764318,1717775438585,-547.193963,0.0001916,2]
[328764320,1717775438595,-547.193963,0.0001916,2]
[328764321,1717775438605,-151.0,0.0001916,2]
[328764322,1717775438615,-151.0,0.0001916,2]
[328764323,1717775438625,-151.0,0.0001916,2]
[328764324,1717775438635,-151.0,0.0001916,2]
[328764325,1717775438645,-226.403326,0.0001916,2]
[328764326,1717775438656,-226.403326,0.0001916,2]
[328764327,1717775438666,-226.403326,0.0001916,2]
[328764328,1717775438676,-226.403326,0.0001916,2]
[328764329,1717775438686,-151.0,0.0001916,2]
[328764330,1717775438696,-151.0,0.0001916,2]
[328764331,1717775438706,-1248.430862,0.0001916,2]
[328764332,1717775438715,-1248.430862,0.0001916,2]
[328764333,1717775438726,-1248.430862,0.0001916,2]
[328764334,1717775438735,-1248.430862,0.0001916,2]
[328764336,1717775438745,-295.674163,0.0001916,2]
[328764338,1717775438755,-295.674163,0.0001916,2]
[328764340,1717775438765,-295.674163,0.0001916,2]
[328764342,1717775438775,-295.674163,0.0001916,2]
[328764344,1717775438786,-151.0,0.0001916,2]
[328764347,1717775438796,-151.0,0.0001916,2]
[328764349,1717775438806,-151.0,0.0001916,2]
[328764350,1717775438816,-151.0,0.0001916,2]
[328764352,1717775438825,-151.0,0.0001916,2]
[328764354,1717775438835,-151.0,0.0001916,2]
[328764356,1717775438845,-151.0,0.0001916,2]
[328764358,1717775438855,-151.0,0.0001916,2]
[328764360,1717775438865,-1407.305235,0.0001916,2]
[328764363,1717775438875,-1407.305235,0.0001916,2]
[328764364,1717775438885,-1407.305235,0.0001916,2]
[328764367,1717775438895,-1407.305235,0.0001916,2]
[328764369,1717775438906,-1671.105969,0.0001916,2]
[328764371,1717775438917,-1671.105969,0.0001916,2]
[328764373,1717775438926,-1671.105969,0.0001916,2]
[328764375,1717775438936,-1671.105969,0.0001916,2]
[328764377,1717775438946,-151.0,0.0001916,2]
[328764379,1717775438956,-151.0,0.0001916,2]
[328764381,1717775438966,-151.0,0.0001916,2]
[328764383,1717775438976,-951.934013,0.0001916,2]
[328764385,1717775438986,-951.934013,0.0001916,2]
[328764387,1717775438996,-151.0,0.0001916,2]
[328764389,1717775439005,-151.0,0.0001916,2]
[328764391,1717775439015,-154.699872,0.0001916,2]
[328764393,1717775439025,-951.934013,0.0001916,2]
[328764395,1717775439036,-951.934013,0.0001916,2]
[328764397,1717775439046,-151.0,0.0001916,2]
[328764399,1717775439057,-151.0,0.0001916,2]
[328764401,1717775439067,-151.0,0.0001916,2]
[328764403,1717775439077,-151.0,0.0001916,2]
[328764405,1717775439087,-151.0,0.0001916,2]
[328764407,1717775439098,-151.0,0.0001916,2]
[328764409,1717775439108,-464.345294,0.0001916,2]
[328764411,1717775439119,-464.345294,0.0001916,2]
[328764413,1717775439129,-464.345294,0.0001916,2]
[328764415,1717775439139,-464.345294,0.0001916,2]
[328764417,1717775439149,-464.345294,0.0001916,2]
[328764419,1717775439159,-464.345294,0.0001916,2]
[328764421,1717775439169,-151.0,0.0001916,2]
[328764423,1717775439179,-151.0,0.0001916,2]
[328764425,1717775439190,-151.0,0.0001916,2]
[328764427,1717775439200,-189.262475,0.0001916,2]
[328764429,1717775439210,-151.0,0.0001916,2]
[328764432,1717775439220,-151.0,0.0001916,2]
[328764434,1717775439230,-151.0,0.0001916,2]
[328764436,1717775439240,-22404.07948431,0.00019175,2]
[328764438,1717775439251,-2302.895677,0.00019175,2]
[328764440,1717775439261,-2302.895677,0.00019175,2]
[328764442,1717775439271,-547.193963,0.00019175,2]
[328764444,1717775439285,-547.193963,0.00019175,2]
[328764446,1717775439295,-151.0,0.00019175,2]
[328764448,1717775439305,-151.0,0.00019175,2]
[328764451,1717775439315,-151.0,0.00019175,2]
[328764453,1717775439325,-226.403326,0.00019175,2]
[328764456,1717775439336,-226.403326,0.00019175,2]
[328764459,1717775439345,-151.0,0.00019175,2]
[328764462,1717775439355,-1248.430862,0.00019175,2]
[328764465,1717775439368,-1248.430862,0.00019175,2]
[328764468,1717775439378,-295.674163,0.00019175,2]
[328764470,1717775439388,-295.674163,0.00019175,2]
[328764472,1717775439398,-151.0,0.00019175,2]
[328764475,1717775439408,-151.0,0.00019175,2]
[328764477,1717775439419,-151.0,0.00019175,2]
[328764480,1717775439429,-169.423373,0.00019175,2]
[328764483,1717775439439,-1407.305235,0.00019175,2]
[328764486,1717775439448,-1407.305235,0.00019175,2]
[328764489,1717775439459,-1671.105969,0.00019175,2]
[328764492,1717775439468,-1671.105969,0.00019175,2]
[328764494,1717775439478,-151.0,0.00019175,2]
[328764496,1717775439489,-151.0,0.00019175,2]
[328764498,1717775439499,-951.934013,0.00019175,2]
[328764500,1717775439509,-951.934013,0.00019175,2]
[328764502,1717775439519,-151.0,0.00019175,2]
[328764504,1717775439530,-151.0,0.00019175,2]
[328764506,1717775439540,-151.0,0.00019175,2]
[328764508,1717775439551,-151.0,0.00019175,2]
[328764510,1717775439563,-464.345294,0.00019175,2]
[328764512,1717775439573,-464.345294,0.00019175,2]
[328764514,1717775439585,-464.345294,0.00019175,2]
[328764516,1717775439595,-464.345294,0.00019175,2]
[328764518,1717775439606,-151.0,0.00019175,2]
[328764520,1717775439616,-151.0,0.00019175,2]
[328764522,1717775439626,-151.0,0.00019175,2]
[328764524,1717775439637,-151.0,0.00019175,2]
[328764526,1717775439647,-2409.63345823,0.00019176,2]
[328764528,1717775439658,-5116.60083734,0.00019176,2]
[328764530,1717775439668,-283.90786721,0.00019176,2]
[328764532,1717775439678,-226.403326,0.00019176,2]
[328764534,1717775439689,-226.403326,0.00019176,2]
[328764536,1717775439699,-151.0,0.00019176,2]
[328764538,1717775439709,-1248.430862,0.00019176,2]
[328764539,1717775439720,-1248.430862,0.00019176,2]
[328764541,1717775439731,-295.674163,0.00019176,2]
[328764543,1717775439742,-295.674163,0.00019176,2]
[328764546,1717775439753,-151.0,0.00019176,2]
[328764548,1717775439763,-151.0,0.00019176,2]
[328764560,1717775439881,-1407.305235,0.00019176,2]
[328764562,1717775439892,-1407.305235,0.00019176,2]
[328764564,1717775439902,-1671.105969,0.00019176,2]
[328764565,1717775439912,-1671.105969,0.00019176,2]
[328764567,1717775439922,-151.0,0.00019176,2]
[328764569,1717775439933,-951.934013,0.00019176,2]
[328764571,1717775439943,-951.934013,0.00019176,2]
[328764573,1717775439953,-151.0,0.00019176,2]
[328764575,1717775439963,-151.0,0.00019176,2]
[328764577,1717775439974,-464.345294,0.00019176,2]
[328764580,1717775439985,-464.345294,0.00019176,2]
[328764582,1717775439996,-151.0,0.00019176,2]
[328764584,1717775440006,-151.0,0.00019176,2]
[328764586,1717775440016,-1982.01263178,0.00019177,2]
[328764588,1717775440027,-308.79343994,0.00019178,2]
[328764590,1717775440037,-500.0,0.00019178,2]
[328764591,1717775440047,-486.26119232,0.00019178,2]
[328764593,1717775440057,-880.16247278,0.00019178,2]
[328764595,1717775440067,-206.1194801,0.00019178,2]
[328764597,1717775440077,-880.16247278,0.00019178,2]
[328764599,1717775440087,-500.0,0.00019178,2]
[328764601,1717775440097,-880.16247278,0.00019178,2]
[328764603,1717775440107,-500.0,0.00019178,2]
[328764604,1717775440118,-439.54122449,0.00019178,2]
[328764605,1717775440128,-500.0,0.00019178,2]
[328764606,1717775440139,-880.16247278,0.00019178,2]
[328764607,1717775440150,-500.0,0.00019178,2]
[328764608,1717775440160,-880.16247278,0.00019178,2]
[328764609,1717775440171,-500.0,0.00019178,2]
[328764610,1717775440182,-880.16247278,0.00019178,2]
[328764611,1717775440192,-500.0,0.00019178,2]
[328764612,1717775440202,-880.16247278,0.00019178,2]
[328764613,1717775440213,-880.16247278,0.00019178,2]
[328764614,1717775440223,-880.16247278,0.00019178,2]
[328764615,1717775440233,-880.16247278,0.00019178,2]
[328764616,1717775440243,-880.16247278,0.00019178,2]
[328764617,1717775440252,-880.16247278,0.00019178,2]
[328764618,1717775440263,-880.16247278,0.00019178,2]
[328764619,1717775440274,-880.16247278,0.00019178,2]
[328764620,1717775440286,-880.16247278,0.00019178,2]
[328764621,1717775440296,-880.16247278,0.00019178,2]
[328764622,1717775440306,-880.16247278,0.00019178,2]
[328764623,1717775440315,-880.16247278,0.00019178,2]
[328764624,1717775440325,-880.16247278,0.00019178,2]
[328764625,1717775440335,-880.16247278,0.00019178,2]
[328764626,1717775440343,-880.16247278,0.00019178,2]
[328764627,1717775440354,-880.16247278,0.00019178,2]
[328764628,1717775440364,-880.16247278,0.00019178,2]
[328764630,1717775440373,-880.16247278,0.00019178,2]
[328764631,1717775440382,-903.67449855,0.00019178,2]
[328764633,1717775440392,-903.67449855,0.00019178,2]
[328764634,1717775440401,-903.67449855,0.00019178,2]
[328764636,1717775440410,-903.67449855,0.00019178,2]
[328764638,1717775440420,-903.67449855,0.00019178,2]
[328764639,1717775440431,-903.67449855,0.00019178,2]
[328764641,1717775440441,-903.67449855,0.00019178,2]
[328764643,1717775440451,-903.67449855,0.00019178,2]
[328764644,1717775440462,-903.67449855,0.00019178,2]
[328764646,1717775440472,-903.67449855,0.00019178,2]
[328764648,1717775440482,-903.67449855,0.00019178,2]
[328764650,1717775440493,-903.67449855,0.00019178,2]
[328764652,1717775440503,-903.67449855,0.00019178,2]
[328764654,1717775440514,-903.67449855,0.00019178,2]
[328764656,1717775440524,-903.67449855,0.00019178,2]
[328764657,1717775440534,-903.67449855,0.00019178,2]
[328764659,1717775440545,-903.67449855,0.00019178,2]
[328764661,1717775440555,-903.67449855,0.00019178,2]
[328764663,1717775440565,-903.67449855,0.00019178,2]
[328764664,1717775440576,-903.67449855,0.00019178,2]
[328764666,1717775440586,-903.67449855,0.00019178,2]
[328764668,1717775440597,-903.67449855,0.00019178,2]
[328764671,1717775440607,-903.67449855,0.00019178,2]
[328764673,1717775440617,-903.67449855,0.00019178,2]
[328764676,1717775440628,-892.37856732,0.00019178,2]
[328764679,1717775440639,-892.37856732,0.00019178,2]
[328764681,1717775440649,-892.37856732,0.00019178,2]
[328764683,1717775440659,-892.37856732,0.00019178,2]
[328764685,1717775440671,-892.37856732,0.00019178,2]
[328764688,1717775440681,-892.37856732,0.00019178,2]
[328764690,1717775440691,-892.37856732,0.00019178,2]
[328764692,1717775440701,-892.37856732,0.00019178,2]
[328764694,1717775440711,-892.37856732,0.00019178,2]
[328764696,1717775440720,-892.37856732,0.00019178,2]
[328764698,1717775440730,-892.37856732,0.00019178,2]
[328764701,1717775440740,-892.37856732,0.00019178,2]
[328764704,1717775440750,-892.37856732,0.00019178,2]
[328764707,1717775440759,-911.5009652,0.00019178,2]
[328764710,1717775440769,-911.5009652,0.00019178,2]
[328764712,1717775440778,-911.5009652,0.00019178,2]
[328764715,1717775440791,-911.5009652,0.00019178,2]
[328764717,1717775440803,-911.5009652,0.00019178,2]
[328764719,1717775440812,-911.5009652,0.00019178,2]
[328764721,1717775440823,-911.5009652,0.00019178,2]
[328764723,1717775440832,-152.431634,0.00019178,2]
[328764725,1717775440843,-151.0,0.00019178,2]
[328764727,1717775440853,-151.0,0.00019178,2]
[328764729,1717775440862,-151.0,0.00019178,2]
[328764731,1717775440872,-151.0,0.00019178,2]
[328764733,1717775440882,-151.0,0.00019178,2]
[328764735,1717775440892,-151.0,0.00019178,2]
[328764737,1717775440902,-231.421761,0.00019178,2]
[328764739,1717775440911,-151.0,0.00019178,2]
[328764741,1717775440921,-151.0,0.00019178,2]
[328764743,1717775440931,-151.0,0.00019178,2]
[328764745,1717775440940,-151.0,0.00019178,2]
[328764747,1717775440950,-151.0,0.00019178,2]
[328764749,1717775440960,-151.199888,0.00019178,2]
[328764751,1717775440969,-151.0,0.00019178,2]
[328764753,1717775440980,-200.798078,0.00019178,2]
[328764755,1717775440990,-159.042426,0.00019178,2]
[328764757,1717775440999,-159.042426,0.00019178,2]
[328764759,1717775441009,-159.042426,0.00019178,2]
[328764761,1717775441018,-159.042426,0.00019178,2]
[328764763,1717775441027,-159.042426,0.00019178,2]
[328764765,1717775441038,-159.042426,0.00019178,2]
[328764767,1717775441048,-159.042426,0.00019178,2]
[328764769,1717775441057,-159.042426,0.00019178,2]
[328764771,1717775441066,-159.042426,0.00019178,2]
[328764773,1717775441076,-159.042426,0.00019178,2]
[328764775,1717775441085,-159.042426,0.00019178,2]
[328764777,1717775441095,-159.042426,0.00019178,2]
[328764779,1717775441104,-159.042426,0.00019178,2]
[328764781,1717775441114,-159.042426,0.00019178,2]
[328764783,1717775441123,-159.042426,0.00019178,2]
[328764785,1717775441132,-159.042426,0.00019178,2]
[328764787,1717775441141,-159.042426,0.00019178,2]
[328764789,1717775441150,-159.042426,0.00019178,2]
[328764791,1717775441160,-159.042426,0.00019178,2]
[328764793,1717775441169,-151.0,0.00019178,2]
[328764795,1717775441179,-159.042432,0.00019178,2]
[328764797,1717775441188,-151.0,0.00019178,2]
[328764799,1717775441197,-151.0,0.00019178,2]
[328764801,1717775441207,-151.0,0.00019178,2]
[328764803,1717775441216,-151.0,0.00019178,2]
[328764804,1717775441226,-151.0,0.00019178,2]
[328764806,1717775441236,-151.0,0.00019178,2]
[328764808,1717775441245,-151.0,0.00019178,2]
[328764810,1717775441254,-152.424856,0.00019178,2]
[328764812,1717775441264,-151.0,0.00019178,2]
[328764814,1717775441273,-151.0,0.00019178,2]
[328764816,1717775441287,-151.0,0.00019178,2]
[328764818,1717775441296,-151.0,0.00019178,2]
[328764820,1717775441306,-151.0,0.00019178,2]
[328764822,1717775441316,-151.0,0.00019178,2]
[328764824,1717775441327,-151.0,0.00019178,2]
[328764826,1717775441336,-151.0,0.00019178,2]
[328764829,1717775441346,-151.0,0.00019178,2]
[328764830,1717775441355,-151.0,0.00019178,2]
[328764832,1717775441365,-151.0,0.00019178,2]
[328764834,1717775441375,-151.0,0.00019178,2]
[328764837,1717775441385,-151.0,0.00019178,2]
[328764839,1717775441395,-151.0,0.00019178,2]
[328764840,1717775441404,-151.0,0.00019178,2]
[328764843,1717775441414,-151.0,0.00019178,2]
[328764844,1717775441424,-151.0,0.00019178,2]
[328764846,1717775441433,-151.0,0.00019178,2]
[328764849,1717775441443,-265.950479,0.00019178,2]
[328764851,1717775441453,-151.0,0.00019178,2]
[328764853,1717775441462,-151.0,0.00019178,2]
[328764855,1717775441472,-151.0,0.00019178,2]
[328764857,1717775441481,-237.84203,0.00019178,2]
[328764858,1717775441491,-151.0,0.00019178,2]
[328764861,1717775441500,-151.0,0.00019178,2]
[328764862,1717775441510,-151.0,0.00019178,2]
[328764865,1717775441520,-151.0,0.00019178,2]
[328764866,1717775441530,-151.0,0.00019178,2]
[328764868,1717775441539,-249.826858,0.00019178,2]